Workbook

Sheet Index
A1: TNUoS Tariff Forecast for Charging Year 2018/19 - October 2017
A2: Index
A3: Residuals and Averages
A4: ='T1'!A1 -> Table 1 - Demand Tariffs
A5: ='T2 & Fig 1'!A1&" "&"&"&" "&'T2 & Fig 1'!H1 -> Table 2 - Gross HH Demand Tariffs & Figure 1 - Gross HH Demand Tariffs
A6: ='T3 & Fig 2'!A1&" "&"&"&" "&'T3 & Fig 2'!H1 -> Table 3 - Embedded Export Tariff & Figure 2 - Embedded Export Tariff
A7: ='T4 & Fig 3'!A1&" "&"&"&" "&'T4 & Fig 3'!G1 -> Table 4 - NHH Demand Tariff Changes & Figure 3 - NHH Demand Tariff Changes
A8: ='T5'!A1 -> Table 5 - Generation Wider Tariffs
A9: ='T6 & Fig 4'!A1&" "&"&"&" "&'T6 & Fig 4'!K1 -> Table 6 - Generation Tariff Changes & Figure 4 - Variation in Generation Zonal Tariffs
A10: ='T7'!A1:E1 -> Table 7 - Local Substation Tariffs
A11: ='T8'!A1:F1 -> Table 8 - Local Circuit Tariffs
A12: ='T9'!A1:E1 -> Table 9 - CMP203: Circuits subject to one-off charges
A13: ='T10'!A1:D1 -> Table 10 - Offshore Local Tariffs
A14: ='T11'!A1:E1 -> Table 11 - Contracted and Modelled TEC
A15: ='T12'!A1 -> Table 12 - Interconnectors
A16: ='T13'!A1 -> Table 13 - Allowed Revenues
A17: ='T14'!A1:F1 -> Table 14 - Generation and Demand Revenue Proportions
A18: ='T15'!A1 -> Table 15 - Charging Bases
A19: ='T16'!A1:F1 -> Table 16 - Residual Calculation
A20: ='T17'!A1 -> Table 17 - Small Generator Discount
A21: ='T18'!A1 -> Table 18 - Summary of CUSC Modifications affecting 2018/19 TNUoS Tariffs
A22: ='T19 & Fig 5'!A1&" & "&'T19 & Fig 5'!H1 -> Table 19 - The impact of CMP282 on HH Demand Tariffs & Figure 5 - The impact of CMP282 on HH Demand Tariffs
A23: ='T20 & Fig 6'!A1&" & "&'T20 & Fig 6'!G1 -> Table 20 - The impact of CMP282 on NHH Demand Tariffs & Figure 6 - The impact of CMP282 on NHH Demand Tariffs
A24: Table 21 - The impact of CMP282 on Embedded Export Tariffs & Figure 7 - The impact of CMP282 on Embedded Export Tariffs
A25: Table 22 - Demand Profiles
A26: Table 23 & Table 24 - Annual Load Factors and Generic Annual Load Factors
A27: Table 25 - Generation TEC Changes
A28: Table 26 - Indicative National Grid Revenue Forecast
A29: Table 27 - Offshore Revenues

Sheet Residuals
A1: Residual | B1: 2018/19 June | C1: 2018/19 October | D1: Change
A2: Generation | B2: -3.282082833 | C2: -2.337478141 | D2: =C2-B2 -> 0.9446046917
A3: Demand | B3: 52.20455511 | C3: 46.6559168 | D3: =C3-B3 -> -5.548638312
A5: Average Tariff | B5: 2018/19 June | C5: 2018/19 October | D5: Change
A6: Generation (£/kW) | B6: 6.173472488 | C6: 5.736511788 | D6: =C6-B6 -> -0.4369606997 | E6: N.B. These generation average tariffs include local tariffs
A7: Net HH Demand (£/kW) | B7: 52.77428236 | C7: - | D7: -
A8: Gross HH Demand (£/kW) | B8: - | C8: 46.20031881 | D8: -
A9: NHH Demand (p/kWh) | B9: 6.999888592 | C9: 6.231475348 | D9: =C9-B9 -> -0.768413244
A10: Embedded Export (£/kW) | B10: - | C10: 29.15069182 | D10: n/a

Sheet T1
A1: Table 1 - Demand Tariffs
A3: Zone | B3: Zone Name | C3: Gross HH Demand Tariff (£/kW) | D3: NHH Demand Tariff (p/kWh) | E3: Embedded Export Tariff (£/kWh)
A4: 1 | B4: Northern Scotland | C4: 42.62582799 | D4: 5.685963632 | E4: 27.95811021
A5: 2 | B5: Southern Scotland | C5: 25.07018675 | D5: 3.379183347 | E5: 10.40246897
A6: 3 | B6: Northern | C6: 36.6951524 | D6: 4.850815051 | E6: 22.02743462
A7: 4 | B7: North West | C7: 43.77205988 | D7: 5.877394887 | E7: 29.1043421
A8: 5 | B8: Yorkshire | C8: 43.58436881 | D8: 5.721052043 | E8: 28.91665102
A9: 6 | B9: N Wales & Mersey | C9: 45.18614498 | D9: 5.886432951 | E9: 30.5184272
A10: 7 | B10: East Midlands | C10: 47.14251956 | D10: 6.29714258 | E10: 32.47480178
A11: 8 | B11: Midlands | C11: 48.60088524 | D11: 6.705442148 | E11: 33.93316746
A12: 9 | B12: Eastern | C12: 49.11966937 | D12: 7.112924057 | E12: 34.45195159
A13: 10 | B13: South Wales | C13: 46.53302993 | D13: 5.640874873 | E13: 31.86531214
A14: 11 | B14: South East | C14: 52.26799782 | D14: 7.736564097 | E14: 37.60028004
A15: 12 | B15: London | C15: 54.5907471 | D15: 6.071088231 | E15: 39.92302932
A16: 13 | B16: Southern | C16: 53.55107637 | D16: 7.335474902 | E16: 38.88335859
A17: 14 | B17: South Western | C17: 53.61144641 | D17: 7.814511176 | E17: 38.94372863
A19: Tariffs include small gen tariff of: | C19: 0.5918009789 | D19: 0.0799650342
A20: Residual charge for gross demand: | C20: 46.6559168

Sheet T2 & Fig 1
A1: Table 2 - Gross HH Demand Tariffs | H1: Figure 1 - Gross HH Demand Tariffs
A3: Zone | B3: Peak Security Tariff (£/kW) | C3: Year Round Security Tariff (£/kW) | D3: Residual (£/kW) | E3: Small Gen Discount (£/kW) | F3: Final Tariff (£/kW)
A4: 1 | B4: 0.03865152119 | C4: -4.660541316 | D4: 46.6559168 | E4: 0.5918009789 | F4: 42.62582799
A5: 2 | B5: -1.880609138 | C5: -20.29692189 | D5: 46.6559168 | E5: 0.5918009789 | F5: 25.07018675
A6: 3 | B6: -3.443031216 | C6: -7.109534162 | D6: 46.6559168 | E6: 0.5918009789 | F6: 36.6951524
A7: 4 | B7: -1.16186145 | C7: -2.313796455 | D7: 46.6559168 | E7: 0.5918009789 | F7: 43.77205988
A8: 5 | B8: -2.933824452 | C8: -0.7295245233 | D8: 46.6559168 | E8: 0.5918009789 | F8: 43.58436881
A9: 6 | B9: -1.657942923 | C9: -0.4036298731 | D9: 46.6559168 | E9: 0.5918009789 | F9: 45.18614498
A10: 7 | B10: -2.083848296 | C10: 1.97865008 | D10: 46.6559168 | E10: 0.5918009789 | F10: 47.14251956
A11: 8 | B11: -1.179326534 | C11: 2.532493997 | D11: 46.6559168 | E11: 0.5918009789 | F11: 48.60088524
A12: 9 | B12: 1.267987435 | C12: 0.6039641553 | D12: 46.6559168 | E12: 0.5918009789 | F12: 49.11966937
A13: 10 | B13: -5.354272342 | C13: 4.639584486 | D13: 46.6559168 | E13: 0.5918009789 | F13: 46.53302993
A14: 11 | B14: 3.987643361 | C14: 1.03263668 | D14: 46.6559168 | E14: 0.5918009789 | F14: 52.26799782
A15: 12 | B15: 5.385967 | C15: 1.957062322 | D15: 46.6559168 | E15: 0.5918009789 | F15: 54.5907471
A16: 13 | B16: 2.162847102 | C16: 4.140511484 | D16: 46.6559168 | E16: 0.5918009789 | F16: 53.55107637
A17: 14 | B17: 0.2960765234 | C17: 6.067652111 | D17: 46.6559168 | E17: 0.5918009789 | F17: 53.61144641

Sheet T3 & Fig 2
A1: Table 3 - Embedded Export Tariff | H1: Figure 2 - Embedded Export Tariff
A3: Zone | B3: EET Locational Tariff £/kW | C3: AGIC (£/kW) | D3: 2018/19 Phased Residual (£/kW ) | E3: Final Tariff (£/kW) | F3: EET Revenue (£m)
A4: 1 | B4: -4.621889795 | C4: 3.22 | D4: 29.36 | E4: 27.95811021 | F4: 27.98165546
A5: 2 | B5: -22.17753103 | C5: 3.22 | D5: 29.36 | E5: 10.40246897 | F5: 6.964719868
A6: 3 | B6: -10.55256538 | C6: 3.22 | D6: 29.36 | E6: 22.02743462 | F6: 12.79194953
A7: 4 | B7: -3.475657904 | C7: 3.22 | D7: 29.36 | E7: 29.1043421 | F7: 9.994826306
A8: 5 | B8: -3.663348975 | C8: 3.22 | D8: 29.36 | E8: 28.91665102 | F8: 18.37065219
A9: 6 | B9: -2.061572796 | C9: 3.22 | D9: 29.36 | E9: 30.5184272 | F9: 16.41697356
A10: 7 | B10: -0.1051982159 | C10: 3.22 | D10: 29.36 | E10: 32.47480178 | F10: 15.48016064
A11: 8 | B11: 1.353167463 | C11: 3.22 | D11: 29.36 | E11: 33.93316746 | F11: 7.175319681
A12: 9 | B12: 1.87195159 | C12: 3.22 | D12: 29.36 | E12: 34.45195159 | F12: 21.50518467
A13: 10 | B13: -0.7146878551 | C13: 3.22 | D13: 29.36 | E13: 31.86531214 | F13: 10.55825615
A14: 11 | B14: 5.020280041 | C14: 3.22 | D14: 29.36 | E14: 37.60028004 | F14: 11.96924235
A15: 12 | B15: 7.343029322 | C15: 3.22 | D15: 29.36 | E15: 39.92302932 | F15: 5.951387889
A16: 13 | B16: 6.303358586 | C16: 3.22 | D16: 29.36 | E16: 38.88335859 | F16: 16.97871761
A17: 14 | B17: 6.363728635 | C17: 3.22 | D17: 29.36 | E17: 38.94372863 | F17: 7.801107481

Sheet T4 & Fig 3
A1: Table 4 - NHH Demand Tariff Changes | G1: Figure 3 - NHH Demand Tariff Changes
A3: Zone | B3: Zone Name | C3: 2018/19 June Forecast (p/kWh) | D3: 2018/19 October Forecast (p/kWh) | E3: Change (p/kWh)
A4: 1 | B4: Northern Scotland | C4: 10.18461115 | D4: 5.685963632 | E4: -4.498647517 | G4: 0
A5: 2 | B5: Southern Scotland | C5: 4.711528003 | D5: 3.379183347 | E5: -1.332344656
A6: 3 | B6: Northern | C6: 6.143091784 | D6: 4.850815051 | E6: -1.292276734
A7: 4 | B7: North West | C7: 6.512836034 | D7: 5.877394887 | E7: -0.6354411468
A8: 5 | B8: Yorkshire | C8: 6.776159242 | D8: 5.721052043 | E8: -1.055107199
A9: 6 | B9: N Wales & Mersey | C9: 7.081866931 | D9: 5.886432951 | E9: -1.19543398
A10: 7 | B10: East Midlands | C10: 7.009019318 | D10: 6.29714258 | E10: -0.7118767378
A11: 8 | B11: Midlands | C11: 7.11527378 | D11: 6.705442148 | E11: -0.4098316323
A12: 9 | B12: Eastern | C12: 7.782534371 | D12: 7.112924057 | E12: -0.6696103148
A13: 10 | B13: South Wales | C13: 6.519820816 | D13: 5.640874873 | E13: -0.8789459435
A14: 11 | B14: South East | C14: 8.184487826 | D14: 7.736564097 | E14: -0.4479237284
A15: 12 | B15: London | C15: 6.091992505 | D15: 6.071088231 | E15: -0.02090427377
A16: 13 | B16: Southern | C16: 7.772623739 | D16: 7.335474902 | E16: -0.437148837
A17: 14 | B17: South Western | C17: 8.233389984 | D17: 7.814511176 | E17: -0.4188788082

Sheet T5
A1: Table 5 - Generation Wider Tariffs
G2: Example Tariffs:
C3: System Peak | D3: Shared Year Round | E3: Not Shared Year Round | F3: Residual | G3: Conventional Carbon 80% | H3: Conventional Low Carbon 80% | I3: Intermittent 40%
A4: Zone | B4: Zone Name | C4: Tariff (£/kW) | D4: Tariff (£/kW) | E4: Tariff (£/kW) | F4: Tariff (£/kW) | G4: Tariff (£/kW) | H4: Tariff (£/kW) | I4: Tariff (£/kW)
A5: 1 | B5: North Scotland | C5: 2.241533995 | D5: 19.71358543 | E5: 15.37788072 | F5: -2.337478141 | G5: 27.97722877 | H5: 31.05280492 | I5: 20.92583675
A6: 2 | B6: East Aberdeenshire | C6: 4.493625217 | D6: 10.28606821 | E6: 15.37788072 | F6: -2.337478141 | G6: 22.68730622 | H6: 25.76288237 | I6: 17.15482987
A7: 3 | B7: Western Highlands | C7: 1.718980258 | D7: 18.66179455 | E7: 15.37788072 | F7: -2.337478141 | G7: 26.61324233 | H7: 29.68881848 | I7: 20.5051204
A8: 4 | B8: Skye and Lochalsh | C8: 1.734184763 | D8: 18.66179455 | E8: 21.19684009 | F8: -2.337478141 | G8: 31.28361433 | H8: 35.52298235 | I8: 26.32407977
A9: 5 | B9: Eastern Grampian and Tayside | C9: 2.733253554 | D9: 15.78010648 | E9: 14.95489564 | F9: -2.337478141 | G9: 24.98377712 | H9: 27.97475625 | I9: 18.9294601
A10: 6 | B10: Central Grampian | C10: 3.471545067 | D10: 14.91473058 | E10: 14.66631617 | F10: -2.337478141 | G10: 24.79890432 | H10: 27.73216756 | I10: 18.29473026
A11: 7 | B11: Argyll | C11: 3.139357298 | D11: 11.74459731 | E11: 24.33145644 | F11: -2.337478141 | G11: 29.66272216 | H11: 34.52901344 | I11: 26.69181722
A12: 8 | B12: The Trossachs | C12: 3.485394309 | D12: 11.74459731 | E12: 13.54115448 | F12: -2.337478141 | G12: 21.3765176 | H12: 24.08474849 | I12: 15.90151526
A13: 9 | B13: Stirlingshire and Fife | C13: 2.070736668 | D13: 8.812134838 | E13: 12.88701679 | F13: -2.337478141 | G13: 17.09257983 | H13: 19.66998319 | I13: 14.07439259
A14: 10 | B14: South West Scotlands | C14: 2.393556697 | D14: 9.503815381 | E14: 13.01188887 | F14: -2.337478141 | G14: 18.06864195 | H14: 20.67101973 | I14: 14.47593688
A15: 11 | B15: Lothian and Borders | C15: 3.45896513 | D15: 9.503815381 | E15: 7.441955734 | F15: -2.337478141 | G15: 14.67810388 | H15: 16.16649503 | I15: 8.906003745
A16: 12 | B16: Solway and Cheviot | C16: 1.872722772 | D16: 5.515458294 | E16: 7.419830989 | F16: -2.337478141 | G16: 9.883476057 | H16: 11.36744226 | I16: 7.288536166
A17: 13 | B17: North East England | C17: 3.655605505 | D17: 3.273478035 | E17: 4.026335601 | F17: -2.337478141 | G17: 7.157978273 | H17: 7.963245393 | I17: 2.998248674
A18: 14 | B18: North Lancashire and The Lakes | C18: 1.456718062 | D18: 3.273478035 | E18: 2.570817898 | F18: -2.337478141 | G18: 3.794676667 | H18: 4.308840247 | I18: 1.542730971
A19: 15 | B19: South Lancashire, Yorkshire and Humber | C19: 4.255805039 | D19: 1.224412207 | E19: 0 | F19: -2.337478141 | G19: 2.897856664 | H19: 2.897856664 | I19: -1.847713258
A20: 16 | B20: North Midlands and North Wales | C20: 3.343571281 | D20: -0.2506771762 | E20: 0 | F20: -2.337478141 | G20: 0.8055513993 | H20: 0.8055513993 | I20: -2.437749012
A21: 17 | B21: South Lincolnshire and North Norfolk | C21: 2.090056968 | D21: -0.1878006644 | E21: 0 | F21: -2.337478141 | G21: -0.3976617041 | H21: -0.3976617041 | I21: -2.412598407
A22: 18 | B22: Mid Wales and The Midlands | C22: 1.213213854 | D22: 0.1099255836 | E22: 0 | F22: -2.337478141 | G22: -1.03632382 | H22: -1.03632382 | I22: -2.293507908
A23: 19 | B23: Anglesey and Snowdon | C23: 3.582851568 | D23: 0.1777563111 | E23: 0 | F23: -2.337478141 | G23: 1.387578476 | H23: 1.387578476 | I23: -2.266375617
A24: 20 | B24: Pembrokeshire | C24: 8.301450546 | D24: -4.582854273 | E24: 0 | F24: -2.337478141 | G24: 2.297688986 | H24: 2.297688986 | I24: -4.17061985
A25: 21 | B25: South Wales & Gloucester | C25: 5.288730486 | D25: -4.667698179 | E25: 0 | F25: -2.337478141 | G25: -0.7829061979 | H25: -0.7829061979 | I25: -4.204557413
A26: 22 | B26: Cotswold | C26: 2.164426891 | D26: 2.332048266 | E26: -7.067749644 | F26: -2.337478141 | G26: -3.961612352 | H26: -5.37516228 | I26: -8.472408478
A27: 23 | B27: Central London | C27: -5.574744619 | D27: 2.332048266 | E27: -6.261714599 | F27: -2.337478141 | G27: -11.05595583 | H27: -12.30829875 | I27: -7.666373434
A28: 24 | B28: Essex and Kent | C28: -3.954549277 | D28: 2.332048266 | E28: 0 | F28: -2.337478141 | G28: -4.426388805 | H28: -4.426388805 | I28: -1.404658835
A29: 25 | B29: Oxfordshire, Surrey and Sussex | C29: -1.408390258 | D29: -2.526833732 | E29: 0 | F29: -2.337478141 | G29: -5.767335385 | H29: -5.767335385 | I29: -3.348211634
A30: 26 | B30: Somerset and Wessex | C30: -2.157555371 | D30: -4.571951 | E30: 0 | F30: -2.337478141 | G30: -8.152594312 | H30: -8.152594312 | I30: -4.166258541
A31: 27 | B31: West Devon and Cornwall | C31: -1.564245647 | D31: -6.853368892 | E31: 0 | F31: -2.337478141 | G31: -9.384418902 | H31: -9.384418902 | I31: -5.078825698
C33: Small Generation Discount (£/kW) | F33: 11.07961

Sheet T6 & Fig 4
A1: Table 6 - Generation Tariff Changes | K1: Figure 4 - Variation in Generation Zonal Tariffs
A4: Generation Wider Tariffs (£/kW)
C5: Conventional 80% | F5: Intermittent 40% | I5: Change in Residual (£/kW)
A6: Zone | B6: Zone Name | C6: 2018/19 June forecast (£/kW) | D6: 2018/19 October forecast (£/kW) | E6: Change (£/kW) | F6: 2018/19 June forecast (£/kW) | G6: 2018/19 October forecast (£/kW) | H6: Change (£/kW)
A7: 1 | B7: North Scotland | C7: 26.59495109 | D7: 31.05280492 | E7: 4.457853827 | F7: 23.57500561 | G7: 20.92583675 | H7: -2.64916886 | I7: 0.9446046917
A8: 2 | B8: East Aberdeenshire | C8: 20.21864419 | D8: 25.76288237 | E8: 5.544238178 | F8: 17.39482671 | G8: 17.15482987 | H8: -0.2399968488 | I8: 0.9446046917
A9: 3 | B9: Western Highlands | C9: 26.32449701 | D9: 29.68881848 | E9: 3.364321471 | F9: 22.73158875 | G9: 20.5051204 | H9: -2.226468351 | I9: 0.9446046917
A10: 4 | B10: Skye and Lochalsh | C10: 31.9291032 | D10: 35.52298235 | E10: 3.593879154 | F10: 28.33628535 | G10: 26.32407977 | H10: -2.012205578 | I10: 0.9446046917
A11: 5 | B11: Eastern Grampian and Tayside | C11: 24.92982427 | D11: 27.97475625 | E11: 3.044931977 | F11: 20.37778372 | G11: 18.9294601 | H11: -1.448323626 | I11: 0.9446046917
A12: 6 | B12: Central Grampian | C12: 25.37563309 | D12: 27.73216756 | E12: 2.35653447 | F12: 20.51000993 | G12: 18.29473026 | H12: -2.215279675 | I12: 0.9446046917
A13: 7 | B13: Argyll | C13: 31.9891079 | D13: 34.52901344 | E13: 2.539905539 | F13: 28.15333594 | G13: 26.69181722 | H13: -1.461518724 | I13: 0.9446046917
A14: 8 | B14: The Trossachs | C14: 21.83969415 | D14: 24.08474849 | E14: 2.245054347 | F14: 17.48424256 | G14: 15.90151526 | H14: -1.582727304 | I14: 0.9446046917
A15: 9 | B15: Stirlingshire and Fife | C15: 15.98766376 | D15: 19.66998319 | E15: 3.682319435 | F15: 14.06588412 | G15: 14.07439259 | H15: 0.008508464001 | I15: 0.9446046917
A16: 10 | B16: South West Scotlands | C16: 19.29649726 | D16: 20.67101973 | E16: 1.374522465 | F16: 15.23980531 | G16: 14.47593688 | H16: -0.7638684319 | I16: 0.9446046917
A17: 11 | B17: Lothian and Borders | C17: 14.88963785 | D17: 16.16649503 | E17: 1.276857175 | F17: 10.02515981 | G17: 8.906003745 | H17: -1.119156066 | I17: 0.9446046917
A18: 12 | B18: Solway and Cheviot | C18: 9.667825489 | D18: 11.36744226 | E18: 1.699616766 | F18: 7.089005502 | G18: 7.288536166 | H18: 0.1995306639 | I18: 0.9446046917
A19: 13 | B19: North East England | C19: 6.555979838 | D19: 7.963245393 | E19: 1.407265555 | F19: 2.397168044 | G19: 2.998248674 | H19: 0.6010806294 | I19: 0.9446046917
A20: 14 | B20: North Lancashire and The Lakes | C20: 2.778385237 | D20: 4.308840247 | E20: 1.530455009 | F20: 0.8511169465 | G20: 1.542730971 | H20: 0.6916140242 | I20: 0.9446046917
A21: 15 | B21: South Lancashire, Yorkshire and Humber | C21: 1.771292769 | D21: 2.897856664 | E21: 1.126563895 | F21: -2.756495826 | G21: -1.847713258 | H21: 0.9087825681 | I21: 0.9446046917
A22: 16 | B22: North Midlands and North Wales | C22: 0.1045620755 | D22: 0.8055513993 | E22: 0.7009893239 | F22: -3.489930802 | G22: -2.437749012 | H22: 1.052181791 | I22: 0.9446046917
A23: 17 | B23: South Lincolnshire and North Norfolk | C23: -0.9705270964 | D23: -0.3976617041 | E23: 0.5728653923 | F23: -3.229620199 | G23: -2.412598407 | H23: 0.8170217922 | I23: 0.9446046917
A24: 18 | B24: Mid Wales and The Midlands | C24: -1.682532094 | D24: -1.03632382 | E24: 0.6462082745 | F24: -3.086936722 | G24: -2.293507908 | H24: 0.7934288147 | I24: 0.9446046917
A25: 19 | B25: Anglesey and Snowdon | C25: 0.04269498257 | D25: 1.387578476 | E25: 1.344883493 | F25: -3.586146382 | G25: -2.266375617 | H25: 1.319770766 | I25: 0.9446046917
A26: 20 | B26: Pembrokeshire | C26: 2.632526905 | D26: 2.297688986 | E26: -0.3348379182 | F26: -4.85623996 | G26: -4.17061985 | H26: 0.6856201101 | I26: 0.9446046917
A27: 21 | B27: South Wales & Gloucester | C27: -0.536708345 | D27: -0.7829061979 | E27: -0.246197853 | F27: -4.907663539 | G27: -4.204557413 | H27: 0.7031061269 | I27: 0.9446046917
A28: 22 | B28: Cotswold | C28: -5.168131438 | D28: -5.37516228 | E28: -0.2070308429 | F28: -9.098443444 | G28: -8.472408478 | H28: 0.6260349656 | I28: 0.9446046917
A29: 23 | B29: Central London | C29: -11.66457928 | D29: -12.30829875 | E29: -0.6437194677 | F29: -7.932576768 | G29: -7.666373434 | H29: 0.2662033344 | I29: 0.9446046917
A30: 24 | B30: Essex and Kent | C30: -4.781508549 | D30: -4.426388805 | E30: 0.3551197447 | F30: -2.18279253 | G30: -1.404658835 | H30: 0.7781336955 | I30: 0.9446046917
A31: 25 | B31: Oxfordshire, Surrey and Sussex | C31: -6.071910107 | D31: -5.767335385 | E31: 0.304574722 | F31: -4.156357217 | G31: -3.348211634 | H31: 0.8081455836 | I31: 0.9446046917
A32: 26 | B32: Somerset and Wessex | C32: -8.216287187 | D32: -8.152594312 | E32: 0.06369287564 | F32: -4.921780152 | G32: -4.166258541 | H32: 0.7555216111 | I32: 0.9446046917
A33: 27 | B33: West Devon and Cornwall | C33: -9.411151143 | D33: -9.384418902 | E33: 0.02673224048 | F33: -5.834194685 | G33: -5.078825698 | H33: 0.755368987 | I33: 0.9446046917

Sheet T7
A1: Table 7 - Local Substation Tariffs
A3: Substation Rating | B3: Connection Type | C3: Local Substation Tariff (£/kW)
C4: 132kV | D4: 275kV | E4: 400kV
A5: <1320 MW | B5: No redundancy | C5: 0.191605 | D5: 0.10961 | E5: 0.078976
A6: <1320 MW | B6: Redundancy | C6: 0.42209 | D6: 0.26115 | E6: 0.18993
A7: >=1320 MW | B7: No redundancy | C7: 0 | D7: 0.343677 | E7: 0.248548
A8: >=1320 MW | B8: Redundancy | C8: 0 | D8: 0.56423 | E8: 0.411841

Sheet T8
A1: Table 8 - Local Circuit Tariffs
A3: Substation Name | B3: (£/kW) | C3: Substation Name | D3: (£/kW) | E3: Substation Name | F3: (£/kW) | G3: Substation Name | H3: (£/kW)
A4: Achruach | B4: 4.096995238 | C4: Dinorwig | D4: 2.289710719 | E4: Kilmorack | F4: 0.1884736579 | G4: Kype Muir | H4: 1.415514979
A5: Aigas | B5: 0.6241583301 | C5: Dunlaw Extension | D5: 1.433123101 | E5: Langage | F5: 0.6274770651 | G5: Middle Muir | H5: 1.891663998
A6: An Suidhe | B6: -0.9113537599 | C6: Dunhill | D6: 1.366908137 | E6: Lochay | F6: 0.3492302765 | G6: Dorenell | H6: 2.002795806
A7: Arecleoch | B7: 1.982090932 | C7: Dumnaglass | D7: 1.771804555 | E7: Luichart | F7: 0.5486971534 | G7: Millennium South | H7: 0.8992683395
A8: Baglan Bay | B8: 0.7256362359 | C8: Edinbane | D8: 6.533826372 | E8: Mark Hill | F8: 0.83558088 | G8: Aberdeen Bay | H8: 2.48826572
A9: Beinneun Wind Farm | B9: 1.433097412 | C9: Earlshaugh Wind Farm | D9: 3.59793584 | E9: Margree | F9: 5.745649293 | G9: Killingholme | H9: 0.6770694951
A10: Bhlaraidh Wind Farm | B10: 0.6279798738 | C10: Ewe Hill | D10: 1.311432995 | E10: Marchwood | F10: 0.3643605074 | G10: Middleton | H10: 0.1075051309
A11: Black Hill | B11: 0.823371609 | C11: Fallago | D11: 0.1912734676 | E11: Millennium Wind | F11: 1.742661537
A12: BlackCraig Wind Farm | B12: 6.007572 | C12: Farr | D12: 3.402584672 | E12: Moffat | F12: 0.1640397164
A13: Black Law | B13: 1.667574571 | C13: Fernoch | D13: 4.198372118 | E13: Mossford | F13: 2.749193002
A14: BlackLaw Extension | B14: 3.536307729 | C14: Ffestiniogg | D14: 0.2414443926 | E14: Nant | F14: 2.395570968
A15: Bodelwyddan | B15: 0.109804756 | C15: Finlarig | D15: 0.305576492 | E15: Necton | F15: -0.3569364281
A16: Carrington | B16: -0.03088917198 | C16: Foyers | D16: 0.7185995568 | E16: Rhigos | F16: 0.09677759593
A17: Clyde (North) | B17: 0.1046586153 | C17: Galawhistle | D17: 1.411472368 | E17: Rocksavage | F17: 0.01688741804
A18: Clyde (South) | B18: 0.1210326244 | C18: Glendoe | D18: 1.755414802 | E18: Saltend | F18: 0.3254029329
A19: Corriegarth | B19: 3.008661785 | C19: Glenglass | D19: 9.267412572 | E19: South Humber Bank | F19: 0.9030582297
A20: Corriemoillie | B20: 1.589153192 | C20: Gordonbush | D20: 0.5788195976 | E20: Spalding | F20: 0.2663462396
A21: Coryton | B21: 0.04958267182 | C21: Griffin Wind | D21: 4.079805117 | E21: Strathbrora | F21: 0.4274693111
A22: Cruachan | B22: 1.805973593 | C22: Hadyard Hill | D22: 2.641489086 | E22: Stronelairg | F22: 1.403544484
A23: Crystal Rig | B23: 0.03139031439 | C23: Harestanes | D23: 2.394748108 | E23: Strathy Wind | F23: 2.05871278
A24: Culligran | B24: 1.654034215 | C24: Hartlepool | D24: 0.5736968692 | E24: Wester Dod | F24: 0.3561261036
A25: Deanie | B25: 2.717341925 | C25: Hedon | D25: 0.172684331 | E25: Whitelee | F25: 0.1012825309
A26: Dersalloch | B26: 2.298804341 | C26: Invergarry | D26: 1.354681121 | E26: Whitelee Extension | F26: 0.2815654359
A27: Didcot | B27: 0.497304586 | C27: Kilgallioch | D27: 1.004385098 | E27: Gills Bay | F27: 2.403354967

Sheet T9
A1: Table 9 - CMP203: Circuits subject to one-off charges
A3: Node 1 | B3: Node 2 | C3: Actual Parameters | D3: Amendment in Transport Model | E3: Generator
A4: Dyce 132kV | B4: Aberdeen Bay 132kV | C4: 9.5km of Cable | D4: 9.5km of OHL | E4: Aberdeen Bay
A5: Crystal Rig 132kV | B5: Wester Dod 132kV | C5: 3.9km of Cable | D5: 3.9km of OHL | E5: Aikengall II
A6: Wishaw 132kV | B6: Blacklaw 132kV | C6: 11.46km of Cable | D6: 11.46km of OHL | E6: Blacklaw
A7: Farigaig 132kV | B7: Corriegarth 132kV | C7: 4km Cable | D7: 4km OHL | E7: Corriegarth
A8: Elvanfoot 275kV | B8: Clyde North 275kV | C8: 6.2km of Cable | D8: 6.2km of OHL | E8: Clyde North
A9: Elvanfoot 275kV | B9: Clyde South 275kV | C9: 7.17km of Cable | D9: 7.17km of OHL | E9: Clyde South
A10: Farigaig 132kV | B10: Dunmaglass 132kV | C10: 4km Cable | D10: 4km OHL | E10: Dunmaglass
A11: Coalburn 132kV | B11: Galawhistle 132kV | C11: 9.7km cable | D11: 9.7km OHL | E11: Galawhistle II
A12: Moffat 132kV | B12: Harestanes 132kV | C12: 15.33km cable | D12: 15.33km OHL | E12: Harestanes
A13: Coalburn 132kV | B13: Kype Muir 132kV | C13: 17km cable | D13: 17km OHL | E13: Kype Muir
A14: Coalburn 132kV | B14: Middle Muir 132kV | C14: 13km cable | D14: 13km OHL | E14: Middle Muir
A15: Melgarve 132kV | B15: Stronelairg 132kV | C15: 10km cable | D15: 10km OHL | E15: Stronelairg
A16: East Kilbride South 275kV | B16: Whitelee 275kV | C16: 6km of Cable | D16: 6km of OHL | E16: Whitelee
A17: East Kilbride South 275kV | B17: Whitelee Extension 275kV | C17: 16.68km of Cable | D17: 16.68km of OHL | E17: Whitelee Extension

Sheet T10
A1: Table 10 - Offshore Local Tariffs
A3: Offshore Generator | B3: Tariff Component (£/kW)
B4: Substation | C4: Circuit | D4: ETUoS
A5: Barrow | B5: 7.721088 | C5: 40.396727 | D5: 1.003106
A6: Greater Gabbard | B6: 14.47613294 | C6: 33.26472807 | D6: 0
A7: Gunfleet | B7: 16.710105 | C7: 15.341185 | D7: 2.867356
A8: Gwynt Y Mor | B8: 17.6296131 | C8: 17.36734669 | D8: 0
A9: Lincs | B9: 14.42943443 | C9: 56.4945337 | D9: 0
A10: London Array | B10: 9.822494694 | C10: 33.4548701 | D10: 0
A11: Ormonde | B11: 23.869459 | C11: 44.466566 | D11: 0.354361
A12: Robin Rigg East | B12: -0.441553 | C12: 29.249094 | D12: 9.065641
A13: Robin Rigg West | B13: -0.441553 | C13: 29.249094 | D13: 9.065641
A14: Sheringham Shoal | B14: 23.06203382 | C14: 27.04636335 | D14: 0.5879084449
A15: Thanet | B15: 17.56257679 | C15: 32.72535809 | D15: 0.7878149358
A16: Walney 1 | B16: 20.600474 | C16: 41.025791 | D16: 0
A17: Walney 2 | B17: 20.450653 | C17: 41.387231 | D17: 0
A18: West of Duddon Sands | B18: 7.949160509 | C18: 39.22418094 | D18: 0
A19: Westermost Rough | B19: 16.73826053 | C19: 28.31397403 | D19: 0
A20: Humber Gateway | B20: 14.02914171 | C20: 31.65441943 | D20: 0

Sheet T11
A1: Table 11 - Contracted and Modelled TEC
A3: (GW) | B3: 2017/18 Final | C3: 2018/19 Initial Forecast | D3: 2018/19 June Forecast | E3: 2018/19 Oct Forecast
A4: Contracted TEC | B4: 72.19346 | C4: 79.56906 | D4: 78.82561 | E4: 82.44561
A5: Modelled Best View TEC | B5: 72.19346 | C5: 72.61966 | D5: 75.45641 | E5: 79.68341

Sheet T12
A1: Table 12 - Interconnectors
A3: Interconnector | B3: Site | C3: Interconnected System | D3: Generation Zone | E3: Transport Model (Generation MW) Peak | F3: Transport Model (Generation MW) Year Round | G3: Charging Base (Generation MW)
A4: IFA Interconnector | B4: Sellindge 400kV | C4: France | D4: 24 | E4: 0 | F4: 2000 | G4: 0
A5: ElecLink | B5: Sellindge 400kV | C5: France | D5: 24 | E5: 0 | F5: 1000 | G5: 0
A6: BritNed | B6: Grain 400kV | C6: Netherlands | D6: 24 | E6: 0 | F6: 1200 | G6: 0
A7: East - West | B7: Deesside 400kV | C7: Republic of Ireland | D7: 16 | E7: 0 | F7: 505 | G7: 0
A8: Moyle | B8: Auchencrosh 275kV | C8: Northern Ireland | D8: 10 | E8: 0 | F8: 80 | G8: 0

Sheet T13
A1: Table 13 - Allowed Revenues
A3: £m Nominal Value | B3: 2017/18 TNUoS Revenue | C3: 2018/19 TNUoS Revenue
B4: Jan 2017 Final | C4: Feb 2017 Initial View | D4: June 2017 Update | E4: Oct 2017 Update | F4: Dec 2017 Draft | G4: Jan 2018 Final
A5: National Grid
A6: Price controlled revenue | B6: 1748.757098 | C6: 1727.770785 | D6: 1719.04877 | E6: 1647.130604
A7: Less income from connections | B7: 41.8826124 | C7: 41.8826124 | D7: 41.8826124 | E7: 41.8826124
A8: Income from TNUoS | B8: =+B6-B7 -> 1706.874486 | C8: 1685.888173 | D8: 1677.166158 | E8: 1605.247991 | F8: 0 | G8: 0
A10: Scottish Power Transmission
A11: Price controlled revenue | B11: =+B12+B13 -> 333.7400004 | C11: 390.5406563 | D11: 377.7324664 | E11: 360.4666661 | F11: =+F12+F13 -> 0 | G11: =+G12+G13 -> 0
A12: Less income from connections | B12: 12.7748 | C12: 26.77954198 | D12: 13.97135212 | E12: 14.2
A13: Income from TNUoS | B13: 320.9652004 | C13: 363.7611143 | D13: 363.7611143 | E13: 346.2666661
A15: SHE Transmission
A16: Price controlled revenue | B16: =+B17+B18 -> 304.7232629 | C16: 366.4865595 | D16: 366.7346057 | E16: 358.5854343 | F16: =+F17+F18 -> 0 | G16: =+G17+G18 -> 0
A17: Less income from connections | B17: 3.355 | C17: 3.244007514 | D17: 3.589042111 | E17: 3.463507629
A18: Income from TNUoS | B18: 301.3682629 | C18: 363.242552 | D18: 363.1455636 | E18: 355.1219267
A20: Offshore | B20: 270.2046075 | C20: 380.1660375 | D20: 373.1840603 | E20: 312.1458731
A21: Network Innovation Competition | B21: 32.07110048 | C21: 40.5 | D21: 40.5 | E21: 40.5
A22: Transmission EDR | D22: 2 | E22: 2
A23: Total to Collect from TNUoS | B23: =+B22+B21+B20+B18+B13+B8 -> 2631.483657 | C23: 2833.557877 | D23: =+D22+D21+D20+D18+D13+D8 -> 2819.756896 | E23: =+E22+E21+E20+E18+E13+E8 -> 2661.282457 | F23: 0 | G23: 0

Sheet T14
A1: Table 14 - Generation and Demand Revenue Proportions
C3: 2017/18 Final | D3: 2018/19 Initial | E3: 2018/19 June | F3: 2018/19 Oct
A4: CAPEC | B4: Limit on generation tariff (€/MWh) | C4: 2.5 | D4: 2.5 | E4: 2.5 | F4: 2.5
A5: y | B5: Error Margin | C5: 0.21 | D5: 0.21 | E5: 0.21 | F5: 0.21
A6: ER | B6: Exchange Rate (€/£) | C6: 1.27 | D6: 1.11 | E6: 1.16 | F6: 1.16
A7: MAR | B7: Total Revenue (£m) | C7: 2631.483657 | D7: 2833.460889 | E7: 2819.756896 | F7: 2661.282457
A8: GO | B8: Generation Output (TWh) | C8: 250.95 | D8: 239.9019902 | E8: 252.6242319 | F8: 252.6242319
A9: G | B9: % of revenue from generation | C9: 0.1483029882 | D9: 0.150647091 | E9: =E4*(1-E5)*E8/E6/E7 -> 0.1525360337 | F9: 0.1616192718
A10: D | B10: % of revenue from demand | C10: 0.8516970118 | D10: 0.849352909 | E10: =1-E9 -> 0.8474639663 | F10: 0.8383807282
A11: G.R | B11: Revenue recovered from generation (£m) | C11: =C7*C9 -> 390.2568898 | D11: =D7*D9 -> 426.8526403 | E11: =E7*E9 -> 430.1145328 | F11: 430.1145328
A12: D.R | B12: Revenue recovered from demand (£m) | C12: =C7*C10 -> 2241.226767 | D12: =D7*D10 -> 2406.608248 | E12: =E7*E10 -> 2389.642363 | F12: 2231.167924

Sheet T15
A1: Table 15 - Charging Bases
A3: Charging Bases | B3: 2017/18 | C3: 2018/19 Initial | D3: 2018/19 June | E3: 2018/19 October | F3: 2018/19 Draft | G3: 2018/19 Final
A4: Generation (GW) | B4: 67.57976 | C4: 66.83466 | D4: 69.67141 | E4: 74.97841
A5: NHH Demand (4pm-7pm TWh) | B5: 25.31320332 | C5: 23.7 | D5: 24.1964169 | E5: 24.17225068
A6: Net Charging
A7: Total Average Triad (GW) | B7: 47.68435089 | C7: 46.43 | D7: 46.00402826 | E7: 45.94727154
A8: HH Demand Average Triad (GW) | B8: 13.22705491 | C8: 14.25 | D8: 13.18672857 | E8: 13.28536457
A9: Gross Charging
A10: Total Average Triad (GW) | B10: Introduced by CMP264/265 | E10: 52.46307414
A11: HH Demand Average Triad (GW) | E11: 19.80116716
A12: Embedded Generation Export (GW) | E12: 6.515802595

Sheet T16
A1: Table 16 - Residual Calculation
B3: Component | C3: 2017/18 | D3: 2018/19 Initial | E3: 2018/19 June | F3: 2018/19 October
A4: G | B4: Proportion of revenue recovered from generation (%) | C4: 0.1483029882 | D4: 0.150647091 | E4: 0.1525360337 | F4: 0.1616192718
A5: D | B5: Proportion of revenue recovered from demand (%) | C5: 0.8516970118 | D5: 0.849352909 | E5: 0.8474639663 | F5: 0.8383807282
A6: R | B6: Total TNUoS revenue (£m) | C6: 2631.483657 | D6: 2833.460889 | E6: 2819.756896 | F6: 2661.282457
A7: Generation Residual
A8: RG | B8: Generator residual tariff (£/kW) | C8: -1.853883063 | D8: =((D6*D4)-D9-D10-D11-D12)/D13 -> -3.203600603 | E8: =((E6*E4)-E9-E10-E11-E12)/E13 -> -3.282082833 | F8: -2.337478141
A9: ZG | B9: Revenue recovered from the locational element of generator tariffs (£m) | C9: 274.9672887 | D9: 313.2079284 | E9: 334.0318324 | F9: 322.2026961
A10: O | B10: Revenue recovered from offshore local tariffs (£m) | C10: 208.4681631 | D10: 293.901043 | E10: 288.423609 | F10: 244.004753
A11: LG | B11: Revenue recovered from onshore local substation tariffs (£m) | C11: 17.50045021 | D11: 16.97777347 | E11: 17.78604393 | F11: 20.68981721
A12: SG | B12: Revenue recovered from onshore local circuit tariffs (£m) | C12: 14.60596019 | D12: 16.87745251 | E12: 18.54038617 | F12: 18.47766094
A13: BG | B13: Generator charging base (GW) | C13: 67.57976 | D13: 66.83466 | E13: 69.67141 | F13: 74.97841
A14: Net Demand Residual
A15: RD | B15: Demand residual tariff (£/kW) | C15: 47.2607563 | D15: =((D6*D5)-D16)/D17 -> 52.24268712 | E15: =((E6*E5)-E16)/E17 -> 52.20455511 | F15: no longer calculated
A16: ZD | B16: Revenue recovered from the locational element of demand tariffs (£m) | C16: -12.37171951 | D16: -19.0197144 | E16: -11.97746549
A17: BD | B17: Demand Net charging base (GW) | C17: 47.68435089 | D17: 46.43 | E17: 46.00402826
A18: Gross Demand Residual
A19: RD | B19: Demand residual tariff (£/kW) | C19: Introduced by CMP264/265 to replace 'net residual' | F19: =(F5*F6-F20+F21)/F22 -> 46.6559168
A20: ZD | B20: Revenue recovered from the locational element of demand tariffs (£m) | F20: -26.60474427
A21: EE | B21: Amount to be paid to Embedded Export Tariffs (£m) | F21: 189.9401534
A22: BD | B22: Demand Gross charging base (GW) | F22: 52.46307414

Sheet T17
A1: Table 17 - Small Generator Discount
A3: Small Generator Discount Calculation
A4: Generator Residual (£/kW) | B4: G | C4: -2.337478141
A5: Demand Residual (£/kW) | B5: D | C5: 46.6559168
A6: Small Generator Discount (£/kW) | B6: T = (G + D)/4 | C6: 11.07961
A7: Forecast Small Generator Volume (kW) | B7: V | C7: 2780910
A8: 2017/18 SGD cost (£) | B8: V x T | C8: =+C7*C6 -> 30811398.25
A9: Prior year reconcilation (£) | B9: R | C9: -236300.3867
A10: Total SGD Cost (£) | B10: C = (V x T) + R | C10: =C8+C9 -> 30575097.86
A11: Total Gross System Triad Demand (kW) | B11: TD | C11: 52463074.14
A12: Total HH Gross Triad Demand (kW) | B12: HHD | C12: 19801167.16
A13: Total NHH Consumption (kWh) | B13: NHHD | C13: 2.417225068e+10
A14: Increase in HH Demand tariff (£/kW) | B14: HHT = C/TD | C14: =+C10/C11 -> 0.5827927235
A15: Total Cost to HH Customers (£) | B15: HHC = HHT * HHD | C15: =+C14*C12 -> 11539976.14
A16: Increase in NHH Demand tariff (p/kWh) | B16: NHHT = (C - HHC)/NHHD | C16: =100*(+C10-(+C14*C12))/(C13) -> 0.07874782524
A17: Total Cost to NHH Customers (£) | B17: NHHC = NHHT * NHHD | C17: =(+C16*C13)/100 -> 19035121.72

Sheet T18
A1: Table 18 - Summary of CUSC Modifications affecting 2018/19 TNUoS Tariffs
A3: Mod Number | B3: Description | C3: Modification approved? | D3: Status in the October 2017 Tariffs
A4: 251 | B4: Removing the error margin in the cap on total TNUoS recovered by generation and introducing a new charging element to TNUoS to ensure compliance with European Commission Regulation 838/2010 | C4: No – The final modification report was submitted to Ofgem in October 2016. | D4: Not implemented.
D6: Discussed in section 6.5 below
A7: 261 | B7: Ensuring the TNUoS paid by Generators in GB in Charging Year 2015/16 is in compliance with the €2.5/MWh annual average limit set in EU Regulation 838/2010 Part B (3) | C7: No – the final report was submitted to GEMA in June 2017 | D7: Not implemented.
D9: Indicative recovery rates below
A10: 264 | B10: Embedded Generation Triad Avoidance Standstill | C10: Yes - WACM4 was approved by Ofgem | D10: Implemented in Forecast. See below for information about Judicial Review.
A12: 265 | B12: Gross charging of TNUoS for HH demand where embedded generation is in Capacity Market
A14: 268 | B14: Recognition of sharing by Conventional Carbon plant of Not-Shared Year-Round circuits | C14: Yes - the original proposal was approved | D14: Implemented in Forecast
A16: 282 | B16: The effect Negative Demand has on Zonal Locational Demand Tariffs | C16: No – expected Ofgem decision November 2017 | D16: Not implemented.
D18: Implemented as an example in section 6.4 below
A19: 283 | B19: Consequential Changes to enable the Interconnector Cap and Floor regime | C19: No – The final report was published in October 2017. | D19: Not implemented.
D21: Discussed in section 6.6 below

Sheet T19 & Fig 5
A1: Table 19 - The impact of CMP282 on HH Demand Tariffs | H1: Figure 5 - The impact of CMP282 on HH Demand Tariffs
C3: Gross HH Demand
A4: Zone | B4: Zone Name | C4: 2018/19 October Forecast (£/kW) | D4: 2018/19 October CMP282 (£/kW) | E4: Change (£/kW)
A5: 1 | B5: Northern Scotland | C5: 42.62582799 | D5: 18.3512669 | E5: =D5-C5 -> -24.27456108
A6: 2 | B6: Southern Scotland | C6: 25.07018675 | D6: 25.1316499 | E6: =D6-C6 -> 0.06146314549
A7: 3 | B7: Northern | C7: 36.6951524 | D7: 36.92453958 | E7: =D7-C7 -> 0.2293871791
A8: 4 | B8: North West | C8: 43.77205988 | D8: 43.86648852 | E8: 0.09442864008
A9: 5 | B9: Yorkshire | C9: 43.58436881 | D9: 43.83198426 | E9: 0.2476154502
A10: 6 | B10: N Wales & Mersey | C10: 45.18614498 | D10: 45.43376043 | E10: 0.2476154502
A11: 7 | B11: East Midlands | C11: 47.14251956 | D11: 47.39013501 | E11: =D11-C11 -> 0.2476154502
A12: 8 | B12: Midlands | C12: 48.60088524 | D12: 48.84850069 | E12: =D12-C12 -> 0.2476154502
A13: 9 | B13: Eastern | C13: 49.11966937 | D13: 49.36728482 | E13: 0.2476154502
A14: 10 | B14: South Wales | C14: 46.53302993 | D14: 46.78064538 | E14: 0.2476154502
A15: 11 | B15: South East | C15: 52.26799782 | D15: 52.51561327 | E15: 0.2476154502
A16: 12 | B16: London | C16: 54.5907471 | D16: 54.83836255 | E16: 0.2476154502
A17: 13 | B17: Southern | C17: 53.55107637 | D17: 53.79869182 | E17: 0.2476154502
A18: 14 | B18: South Western | C18: 53.61144641 | D18: 53.85906187 | E18: =D18-C18 -> 0.2476154502

Sheet T20 & Fig 6
A1: Table 20 - The impact of CMP282 on NHH Demand Tariffs | G1: Figure 6 - The impact of CMP282 on NHH Demand Tariffs
A3: Zone | B3: Zone Name | C3: 2018/19 October Forecast (p/kWh) | D3: 2018/19 October CMP282 (p/kWh) | E3: Change (p/kWh)
A4: 1 | B4: Northern Scotland | C4: 5.685963632 | D4: 2.448517058 | E4: =D4-C4 -> -3.237446574
A5: 2 | B5: Southern Scotland | C5: 3.379183347 | D5: 3.387468507 | E5: =D5-C5 -> 0.008285159746
A6: 3 | B6: Northern | C6: 4.850815051 | D6: 4.881136887 | E6: =D6-C6 -> 0.03032183653
A7: 4 | B7: North West | C7: 5.877394887 | D7: 5.890075768 | E7: 0.01268088108
A8: 5 | B8: Yorkshire | C8: 5.721052043 | D8: 5.753554516 | E8: 0.03250247319
A9: 6 | B9: N Wales & Mersey | C9: 5.886432951 | D9: 5.918689978 | E9: 0.03225702755
A10: 7 | B10: East Midlands | C10: 6.29714258 | D10: 6.33021844 | E10: 0.03307586009
A11: 8 | B11: Midlands | C11: 6.705442148 | D11: 6.739604896 | E11: 0.03416274794
A12: 9 | B12: Eastern | C12: 7.112924057 | D12: 7.148778269 | E12: 0.03585421191
A13: 10 | B13: South Wales | C13: 5.640874873 | D13: 5.670892824 | E13: 0.03001795177
A14: 11 | B14: South East | C14: 7.736564097 | D14: 7.773209778 | E14: 0.03664568102
A15: 12 | B15: London | C15: 6.071088231 | D15: 6.098639171 | E15: 0.02755094043
A16: 13 | B16: Southern | C16: 7.335474902 | D16: 7.369392547 | E16: 0.03391764464
A17: 14 | B17: South Western | C17: 7.814511176 | D17: 7.850598663 | E17: 0.03608748703

Sheet T21 & Fig 7
A1: Table 21 - The impact of CMP282 on Embedded Export Tariffs | F1: Figure 7 - The impact of CMP282 on Embedded Export Tariffs
A3: Zone | B3: October 2017 Final Tariff (£/kW) | C3: October CMP282 Final Tariff (£/kW) | D3: Difference
A4: 1 | B4: 27.95811021 | C4: 3.435933673 | D4: =C4-B4 -> -24.52217653
A5: 2 | B5: 10.40246897 | C5: 10.21631667 | D5: =C5-B5 -> -0.1861523047
A6: 3 | B6: 22.02743462 | C6: 22.00920635 | D6: -0.01822827108
A7: 4 | B7: 29.1043421 | C7: 28.95115529 | D7: -0.1531868101
A8: 5 | B8: 28.91665102 | C8: 28.91665102 | D8: 0
A9: 6 | B9: 30.5184272 | C9: 30.5184272 | D9: 0
A10: 7 | B10: 32.47480178 | C10: 32.47480178 | D10: 0
A11: 8 | B11: 33.93316746 | C11: 33.93316746 | D11: 0
A12: 9 | B12: 34.45195159 | C12: 34.45195159 | D12: 0
A13: 10 | B13: 31.86531214 | C13: 31.86531214 | D13: 0
A14: 11 | B14: 37.60028004 | C14: 37.60028004 | D14: 0
A15: 12 | B15: 39.92302932 | C15: 39.92302932 | D15: 0
A16: 13 | B16: 38.88335859 | C16: 38.88335859 | D16: 0
A17: 14 | B17: 38.94372863 | C17: 38.94372863 | D17: 0

Sheet T22
A1: Table 22 - Demand Profiles
C3: 2018/19 June | G3: 2018/19 October
A4: Zone | B4: Zone Name | C4: Locational Model Demand (MW) | D4: Tariff model Peak Demand (MW) | E4: NET Tariff Model HH Demand (MW) | F4: Tariff model NHH Demand (TWh) | G4: Locational Model Demand (MW) | H4: GROSS Tariff model Peak Demand (MW) | I4: GROSS Tariff Model HH Demand (MW) | J4: Tariff model NHH Demand (TWh) | K4: Tariff model Embedded Export (MW)
A5: 1 | B5: Northern Scotland | C5: 227 | D5: 927.916883 | E5: -530.0249674 | F5: 0.7427627286 | G5: 227 | H5: 1477.054512 | I5: 489.0588999 | J5: 0.7408035074 | K5: 1000.842162
A6: 2 | B6: Southern Scotland | C6: 2820.350123 | D6: 2998.815138 | E6: 662.0081114 | F6: 1.685256967 | G6: 2820.350123 | H6: 3500.496107 | I6: 1258.785484 | J6: 1.66322602 | K6: 669.5256566
A7: 3 | B7: Northern | C7: 2508 | D7: 2240.742282 | E7: 525.8002558 | F7: 1.213144459 | G7: 2508 | H7: 2663.979497 | I7: 1078.298507 | J7: 1.199962226 | K7: 580.7280671
A8: 4 | B8: North West | C8: 3234 | D8: 3684.808688 | E8: 1166.910996 | F8: 1.943372722 | G8: 3234 | H8: 4116.856896 | I8: 1522.52028 | J8: 1.932306722 | K8: 343.4135798
A9: 5 | B9: Yorkshire | C9: 4347 | D9: 3395.157677 | E9: 1006.69185 | F9: 1.757454981 | G9: 4347 | H9: 3919.728623 | I9: 1609.734554 | J9: 1.76052198 | K9: 635.2966732
A10: 6 | B10: N Wales & Mersey | C10: 2831 | D10: 2280.756287 | E10: 593.7610985 | F10: 1.228251864 | G10: 2831 | H10: 2677.573899 | I10: 1085.298335 | J10: 1.222886017 | K10: 537.9364229
A11: 7 | B11: East Midlands | C11: 5333 | D11: 4228.475276 | E11: 1375.946819 | F11: 2.149586092 | G11: 5333 | H11: 4763.00739 | I11: 1878.074412 | J11: 2.160075086 | K11: 476.682221
A12: 8 | B12: Midlands | C12: 4594 | D12: 3959.84252 | E12: 1353.543073 | F12: 1.999284114 | G12: 4594 | H12: 4370.505227 | I12: 1616.95794 | J12: 1.995256817 | K12: 211.4544623
A13: 9 | B13: Eastern | C13: 5843 | D13: 5829.323999 | E13: 1428.604382 | F13: 3.072886026 | G13: 5843 | H13: 6604.513643 | I13: 2132.610743 | J13: 3.085641687 | K13: 624.2080254
A14: 10 | B14: South Wales | C14: 1969 | D14: 1591.520324 | E14: 526.2538162 | F14: 0.8333272379 | G14: 1969 | H14: 1842.641732 | I14: 838.7434669 | J14: 0.8293664415 | K14: 331.3401138
A15: 11 | B15: South East | C15: 3355 | D15: 3579.436195 | E15: 837.9503851 | F15: 1.915152508 | G15: 3355 | H15: 3999.298669 | I15: 1168.966799 | J15: 1.910257878 | K15: 318.3285428
A16: 12 | B16: London | C16: 5271 | D16: 3917.8693 | E16: 2068.435728 | F16: 1.820473717 | G16: 5271 | H16: 4322.863494 | I16: 2285.729746 | J16: 1.836101042 | K16: 149.0715507
A17: 13 | B17: Southern | C17: 5668 | D17: 5014.196426 | E17: 1617.342083 | F17: 2.56050893 | G17: 5668 | H17: 5583.914549 | I17: 2072.206377 | J17: 2.563259144 | K17: 436.6576918
A18: 14 | B18: South Western | C18: 2609 | D18: 2355.167265 | E18: 553.5049376 | F18: 1.274954555 | G18: 2609 | H18: 2620.639899 | I18: 764.1816184 | J18: 1.272586109 | K18: 200.3174261
A19: Total | C19: 50609.35012 | D19: 46004.02826 | E19: 13186.72857 | F19: 24.1964169 | G19: =SUM(G5:G18) -> 50609.35012 | H19: =SUM(H5:H18) -> 52463.07414 | I19: =SUM(I5:I18) -> 19801.16716 | J19: =SUM(J5:J18) -> 24.17225068 | K19: =SUM(K5:K18) -> 6515.802595

Sheet T23 & T24
A1: Table 23 & Table 24 - Annual Load Factors and Generic Annual Load Factors
A3: For the latest Annual Load Factors, please see:
A4: http://www2.nationalgrid.com/UK/Industry-information/System-charges/Electricity-transmission/Approval-conditions/Condition-5/

Sheet T25
A1: Table 25 - Generation TEC Changes
A4: Power Station | B4: Node | C4: MW Change | D4: Generation Zone
A5: Aikengall II Windfarm | B5: WDOD10 | C5: 140 | D5: 11
A6: Eggborough | B6: EGGB40 | C6: 1870 | D6: 15
A7: Galloper Wind Farm | B7: LEIS10 | C7: -86 | D7: 18
A8: Loganhead Windfarm | B8: EWEH1Q | C8: 36 | D8: 12
A9: Margree | B9: MARG10 | C9: -43 | D9: 10
A10: Pencloe Windfarm | B10: BLAC10 | C10: -63 | D10: 10
A11: Peterhead | B11: PEHE20 | C11: 1180 | D11: 2
A12: Powersite @ Drakelow | B12: DRAK40 | C12: 380 | D12: 18
A13: Race Bank Wind Farm | B13: WALP40_EME | C13: 160 | D13: 17
A14: Spalding Energy Expansion | B14: SPLN40 | C14: 300 | D14: 17
A15: Sutton Bridge | B15: WALP40_EME | C15: 31 | D15: 17
A16: Tees Renewable Energy Plant | B16: GRSA20 | C16: -285 | D16: 13
A17: West Burton B | B17: WBUR40 | C17: -38 | D17: 16
A18: West Burton Energy Storage | B18: WBUR40 | C18: 38 | D18: 16

Sheet T26
A1: Table 26 - Indicative National Grid Revenue Forecast
D3: 2017-10-26
A4: Description | C4: Licence Term | D4: Yr t-1 | E4: Yr t | F4: Yr t+1 | I4: Notes
A5: Regulatory Year | D5: 2014/15 | E5: 2015/16 | F5: 2016/17 | G5: 2017/18 | H5: 2018/19
A6: Actual RPI | F6: 264.9916667 | I6: April to March average
A7: RPI Actual | C7: RPIAt | F7: 1.228 | I7: Office of National Statistics
A8: Assumed Interest Rate | C8: It | D8: 0.005 | E8: 0.007 | F8: 0.003360215054 | G8: 0.002916666667 | H8: 0.00375 | I8: Bank of England Base Rate
A9: Opening Base Revenue Allowance (2009/10 prices) | B9: A1 | C9: PUt | D9: 1443.829 | E9: 1475.593 | F9: 1571.387 | G9: 1554.942 | H9: 1587.627 | I9: From Licence
A10: Price Control Financial Model Iteration Adjustment | B10: A2 | C10: MODt | D10: -5.5 | E10: -114.4 | F10: -185.4 | G10: -253.3 | H10: -311 | I10: Forecast
A11: RPI True Up | B11: A3 | C11: TRUt | D11: -0.5272879137 | E11: 4.701911301 | F11: -19.92143138 | G11: -31.39722208 | H11: -6.084594215 | I11: Forecast
A12: Prior Calendar Year RPI Forecast | C12: GRPIFc-1 | D12: 0.031 | E12: 0.025 | F12: 0.01 | G12: 0.018 | H12: 0.035 | I12: HM Treasury Forecast
A13: Current Calendar Year RPI Forecast | C13: GRPIFc | D13: 0.031 | E13: 0.024 | F13: 0.021 | G13: 0.035 | H13: 0.035 | I13: HM Treasury Forecast
A14: Next Calendar Year RPI forecast | C14: GRPIFc+1 | D14: 0.03 | E14: 0.032 | F14: 0.03 | G14: 0.031 | H14: 0.03 | I14: HM Treasury Forecast
A15: RPI Forecast | B15: A4 | C15: RPIFt | D15: 1.2051 | E15: 1.226652821 | F15: 1.233 | G15: 1.271 | H15: 1.314 | I15: Using HM Treasury Forecast
A16: Base Revenue [A=(A1+A2+A3)*A4] | B16: A | C16: BRt | D16: 1732.694843 | E16: 1675.478846 | F16: 1684.358846 | G16: 1614.481113 | H16: 1669.492721
A17: Pass-Through Business Rates | B17: B1 | C17: RBt | E17: 1.23533081 | F17: 1.500117926 | G17: 2.689427883 | H17: 1.563034475 | I17: Forecast
A18: Temporary Physical Disconnection | B18: B2 | C18: TPDt | D18: 0.1439533986 | E18: 0.0123376894 | F18: 0.09047836118 | G18: 0 | H18: 0 | I18: Forecast
A19: Licence Fee | B19: B3 | C19: LFt | E19: 2.02070276 | F19: 2.69339614 | G19: 3.18769528 | H19: -0.3766395763 | I19: Forecast
A20: Inter TSO Compensation | B20: B4 | C20: ITCt | E20: 3.822243508 | F20: 2.674543756 | G20: 0.4986231556 | H20: 1.344774379 | I20: Forecast
A21: Termination of Bilateral Connection Agreements | B21: B5 | C21: TERMt | D21: 0 | E21: 0 | F21: 0 | G21: 0 | H21: 0 | I21: Forecast
A22: SP Transmission Pass-Through | B22: B6 | C22: TSPt | D22: 312.179148 | E22: 295.664557 | F22: 294.623363 | G22: 320.9652004 | H22: 346.2666661 | I22: Forecast
A23: SHE Transmission Pass-Through | B23: B7 | C23: TSHt | D23: 213.9595177 | E23: 338.2073022 | F23: 322.8363165 | G23: 301.3682629 | H23: 355.1219267 | I23: Forecast
A24: Offshore Transmission Pass-Through | B24: B8 | C24: TOFTOt | D24: 218.3803735 | E24: 248.3569992 | F24: 260.7893126 | G24: 270.2046075 | H24: 312.1458731 | I24: Forecast
A25: Embedded Offshore Pass-Through | B25: B9 | C25: OFETt | D25: 0.4373360836 | E25: 0.6494191446 | F25: 0.6544976174 | G25: 0.5150651466 | H25: 0.550654882 | I25: Forecast
A26: Pass-Through Items [B=B1+B2+B3+B4+B5+B6+B7+B8+B9] | B26: B | C26: PTt | D26: 745.1003286 | E26: 889.9688923 | F26: 885.8620259 | G26: 899.4288823 | H26: 1016.61629
A27: Reliability Incentive Adjustment | B27: C1 | C27: RIt | E27: 2.36156378 | F27: 3.92064433 | G27: 4.038087751 | H27: 4.135796856 | I27: Forecast
A28: Stakeholder Satisfaction Adjustment | B28: C2 | C28: SSOt | E28: 8.693059732 | F28: 10.12348826 | G28: 8.604733768 | H28: 7.568948155 | I28: Forecast
A29: Sulphur Hexafluoride (SF6) Gas Emissions Adjustment | B29: C3 | C29: SFIt | E29: 2.809201974 | F29: 2.661674685 | G29: 2.61332417 | H29: 1.434066097 | I29: Forecast
A30: Awarded Environmental Discretionary Rewards | B30: C4 | C30: EDRt | E30: 0 | F30: 2.0215575 | G30: 0 | H30: 0 | I30: Forecast
A31: Outputs Incentive Revenue [C=C1+C2+C3+C4] | B31: C | C31: OIPt | D31: 0 | E31: 13.86382549 | F31: 18.72736477 | G31: 15.25614569 | H31: 13.13881111
A32: Network Innovation Allowance | B32: D | C32: NIAt | D32: 10.91597751 | E32: 10.55551673 | F32: 10.61146073 | G32: 10.17123101 | H32: 10.51780414 | I32: Forecast
A33: Network Innovation Competition | B33: E | C33: NICFt | D33: 17.849214 | E33: 18.76065592 | F33: 44.85487989 | G33: 32.07110048 | H33: 40.5 | I33: Forecast
A34: Future Environmental Discretionary Rewards | B34: F | C34: EDRt | F34: 0 | G34: 0 | H34: 2 | I34: Forecast
A35: Transmission Investment for Renewable Generation | B35: G | C35: TIRGt | D35: 15.99732651 | E35: 15.69901683 | F35: 0 | G35: 0 | H35: 0 | I35: Forecast
A36: Scottish Site Specific Adjustment | B36: H | C36: DISt | D36: 1.984914151 | E36: 0.791 | F36: 2.864922714 | G36: 6.057927949 | H36: 6.292 | I36: Forecast
A37: Scottish Terminations Adjustment | B37: I | C37: TSt | D37: -0.28187454 | E37: 0.101547 | F37: 0.07292861 | G37: -1.12155342 | H37: -0.015 | I37: Forecast
A38: Correction Factor | B38: K | C38: -Kt | E38: 56.42377823 | F38: 103.977966 | G38: 97.02142261 | H38: -55.37755686 | I38: Calculated by Licensee
A39: Maximum Revenue [M= A+B+C+D+E+F+G+H+I+K] | B39: M | C39: TOt | D39: 2524.26073 | E39: 2681.643079 | F39: 2751.330395 | G39: 2673.366269 | H39: 2703.16507
A40: Termination Charges | B40: B5 | D40: 0 | E40: 0 | F40: 0 | G40: 0 | H40: 0
A41: Pre-vesting connection charges | B41: P | D41: 46.95416236 | E41: 44.95520412 | F41: 42.67704326 | G41: 41.8826124 | H41: 41.8826124 | I41: Forecast
A42: TNUoS Collected Revenue [T=M-B5-P] | B42: T | D42: 2477.306567 | E42: 2636.687875 | F42: 2708.653351 | G42: 2631.483657 | H42: 2661.282457
A43: Final Collected Revenue | B43: U | C43: TNRt | D43: =D42 -> 2477.306567 | E43: =E42 -> 2636.687875 | F43: 2708.653351 | G43: 2631.483657 | H43: 2661.282457 | I43: Forecast
A44: Forecast percentage change to Maximum Revenue M | E44: 0.0623478976 | F44: 0.02598679751 | G44: -0.02833688223 | H44: 0.01114654609
A45: Forecast percentage change to TNUoS Collected Revenue T | E45: 0.06433652978 | F45: 0.02729389293 | G45: -0.02849005926 | H45: 0.01132395417
A47: Notes:
A48: All monies are nominal 'money of the day' prices unless stated otherwise
A49: Licensee forecasts and budgets are subject to change especially where they are influenced by external stakeholders
A50: Greyed out cells are either calculated or not applicable in the year concerned due to the way the licence formula are constructed
A51: NIC payments to all Transmission Owners are inlcuded in National Grid Maximum Revenue and are included here
A52: 2014/15 and 2015/16 pass through to other networks is based on forecast at time of tariff setting
A55: \\uk.corporg.net\NGTDFS$\ETO_Charge Setting\FY_2017_18\1 December Forecast\7 MAR\[2016-12-18 Revenue Template Mary NG template.xlsx]

Sheet T27
A1: Table 27 - Offshore Revenues
A3: Offshore Transmission Revenue Forecast | B3: 2017-10-26
G4: Notes
A5: Regulatory Year | B5: 2014/15 | C5: 2015/16 | D5: 2016/17 | E5: 2017/18 | F5: 2018/19
A6: Barrow | B6: 5.475948387 | C6: 5.605119166 | D6: 5.656283019 | E6: 5.872496367 | F6: 5.965195306 | G6: Current revenues plus indexation
A7: Gunfleet | B7: 6.853152423 | C7: 7.014459018 | D7: 7.080594599 | E7: 7.432422281 | F7: 7.464245136 | G7: Current revenues plus indexation
A8: Walney 1 | B8: 12.49105951 | C8: 12.78636456 | D8: 12.90184157 | E8: 13.13609825 | F8: 13.60013796 | G8: Current revenues plus indexation
A9: Robin Rigg | B9: 7.709472064 | C9: 7.891440662 | D9: 7.993308366 | E9: 8.367306563 | F9: 8.401032896 | G9: Current revenues plus indexation
A10: Walney 2 | B10: 12.92696073 | C10: 13.23221075 | D10: 12.51589741 | E10: 12.29931316 | F10: 14.07598744 | G10: Current revenues plus indexation
A11: Sheringham Shoal | B11: 18.92412411 | C11: 19.49893387 | D11: 19.72766462 | E11: 20.02531234 | F11: 20.72911682 | G11: Current revenues plus indexation
A12: Ormonde | B12: 11.57050189 | C12: 11.84309117 | D12: 11.95215008 | E12: 12.15604428 | F12: 12.58980904 | G12: Current revenues plus indexation
A13: Greater Gabbard | B13: 25.9995199 | C13: 26.61925023 | D13: 26.87143257 | E13: 27.3092326 | F13: 28.49169067 | G13: Current revenues plus indexation
A14: London Array | B14: 37.57295282 | C14: 39.2120985 | D14: 39.49870272 | E14: 39.51888334 | F14: 40.00478302 | G14: Current revenues plus indexation
A15: Thanet | B15: 78.85668167 | C15: 17.51705273 | D15: 15.69984448 | E15: 19.5121928 | F15: 18.53274448 | G15: Current revenues plus indexation
A16: Lincs | C16: 25.56339384 | D16: 26.68704214 | E16: 27.18814554 | F16: 26.81560961 | G16: Current revenues plus indexation
A17: Gwynt y mor | C17: 26.28358513 | D17: 23.6461166 | E17: 29.34287447 | F17: 28.15014954 | G17: Current revenues plus indexation
A18: West of Duddon Sands | C18: 35.2899996 | D18: 21.27389291 | E18: 22.04538798 | F18: 22.60175631 | G18: Current revenues plus indexation
A19: Humber Gateway | B19: 0 | D19: 29.28454151 | E19: 9.749899087 | F19: 11.70147021 | G19: Current revenues plus indexation
A20: Westermost Rough | B20: 0 | E20: 11.57669261 | F20: 12.99047311 | G20: Current revenues plus indexation
A21: Forecast to asset transfer to OFTO in 2018/19 | B21: 0 | C21: 0 | D21: 0 | E21: 0 | F21: 40.03167156 | G21: National Grid Forecast
A22: Forecast to asset transfer to OFTO in 2019/20 | B22: 0 | C22: 0 | D22: 0 | E22: 0 | F22: 0 | G22: National Grid Forecast
A23: Forecast to asset transfer to OFTO in 2020/21 | B23: 0 | C23: 0 | D23: 0 | E23: 0 | F23: 0 | G23: National Grid Forecast
A24: Forecast to asset transfer to OFTO in 2021/22 | B24: 0 | C24: 0 | D24: 0 | E24: 0 | F24: 0 | G24: National Grid Forecast
A25: Offshore Transmission Pass-Through (B7) | B25: 218.3803735 | C25: 248.3569992 | D25: 260.7893126 | E25: 265.5323017 | F25: 312.1458731
A28: Notes:
A30: Licensee forecasts and budgets are subject to change especially where they are influenced by external stakeholders
A31: Greyed out cells are either calculated or not applicable in the year concerned due to the way the licence formula are constructed
A32: NIC payments are not included as they do not form part of OFTO Maximum Revenue
